[Event "Titled Tuesday Blitz December 20 Late 2022"]
[White "Kim, Sergey"]
[Black "Shapiro, Daniel"]
[WhiteFideId "13700570"]
[BlackFideId "2001780"]
[WhiteElo "2483"]
[BlackElo "2355"]
[Result "1-0"]
[Round "11"]
[TimeControl "180+1"]
[Date "2022.12.21"]
[WhiteClock "0:00:09"]
[BlackClock "0:00:13"]

1. d4 {[%clk 0:03:00]}  Nf6 {[%clk 0:02:59]} 2. c4 {[%clk 0:03:01]}  e6 {[%clk 0:02:59]} 3. Nc3 {[%clk 0:03:01]}  Bb4 {[%clk 0:02:59]} 4. Qc2 {[%clk 0:03:01]}  d5 {[%clk 0:02:58]} 5. a3 {[%clk 0:03:01]}  Be7 {[%clk 0:02:55]} 6. Nf3 {[%clk 0:03:00]}  O-O {[%clk 0:02:53]} 7. e3 {[%clk 0:02:48]}  b6 {[%clk 0:02:51]} 8. cxd5 {[%clk 0:02:47]}  exd5 {[%clk 0:02:46]} 9. Bd3 {[%clk 0:02:46]}  c5 {[%clk 0:02:30]} 10. Ne5 {[%clk 0:02:40]}  Bb7 {[%clk 0:02:16]} 11. O-O {[%clk 0:02:38]}  Nc6 {[%clk 0:02:15]} 12. Nxc6 {[%clk 0:02:26]}  Bxc6 {[%clk 0:02:15]} 13. Qe2 {[%clk 0:02:16]}  Ne4 {[%clk 0:02:02]} 14. Rd1 {[%clk 0:02:04]}  Nxc3 {[%clk 0:01:55]} 15. bxc3 {[%clk 0:02:04]}  Bf6 {[%clk 0:01:53]} 16. a4 {[%clk 0:02:01]}  Re8 {[%clk 0:01:51]} 17. a5 {[%clk 0:01:53]}  c4 {[%clk 0:01:25]} 18. Bb1 {[%clk 0:01:42]}  bxa5 {[%clk 0:01:24]} 19. Ba3 {[%clk 0:01:36]}  Ba4 {[%clk 0:01:21]} 20. Re1 {[%clk 0:01:33]}  Rb8 {[%clk 0:01:18]} 21. Qf3 {[%clk 0:01:29]}  Rb3 {[%clk 0:01:08]} 22. Bc5 {[%clk 0:01:20]}  Bc6 {[%clk 0:00:58]} 23. Rc1 {[%clk 0:01:08]}  a4 {[%clk 0:00:43]} 24. Bc2 {[%clk 0:01:07]}  Rb7 {[%clk 0:00:38]} 25. Bxa4 {[%clk 0:01:06]}  Qd7 {[%clk 0:00:38]} 26. Bc2 {[%clk 0:01:03]}  Be7 {[%clk 0:00:27]} 27. Ba3 {[%clk 0:00:35]}  Ra8 {[%clk 0:00:21]} 28. h3 {[%clk 0:00:29]}  Bxa3 {[%clk 0:00:20]} 29. Rxa3 {[%clk 0:00:29]}  a5 {[%clk 0:00:20]} 30. Bf5 {[%clk 0:00:26]}  Qd6 {[%clk 0:00:19]} 31. Rca1 {[%clk 0:00:25]}  Rb3 {[%clk 0:00:17]} 32. Rxa5 {[%clk 0:00:17]}  Rxa5 {[%clk 0:00:17]} 33. Rxa5 {[%clk 0:00:17]}  Rxc3 {[%clk 0:00:18]} 34. g3 {[%clk 0:00:16]}  g6 {[%clk 0:00:17]} 35. Bc8 {[%clk 0:00:12]}  Rc1+ {[%clk 0:00:16]} 36. Kg2 {[%clk 0:00:12]}  c3 {[%clk 0:00:16]} 37. Rc5 {[%clk 0:00:11]}  c2 {[%clk 0:00:15]} 38. Ba6 {[%clk 0:00:10]}  Ba4 {[%clk 0:00:15]} 39. Bd3 {[%clk 0:00:10]}  Rd1 {[%clk 0:00:15]} 40. Bxc2 {[%clk 0:00:10]}  Rc1 {[%clk 0:00:14]} 41. Bxa4 {[%clk 0:00:09]}  Rxc5 {[%clk 0:00:12]} 42. dxc5 {[%clk 0:00:09]}  Qxc5 {[%clk 0:00:13]} 43. Bb3 {[%clk 0:00:09]}  Kg7 {[%clk 0:00:13]} 44. Qxd5 {[%clk 0:00:09]} 1-0


[Site "https://www.chess.com"]

[Event "Titled Tuesday Blitz December 20 Late 2022"]
[White "Kleiman, Jake"]
[Black "Gurevich, Dmitry"]
[WhiteFideId "2020041"]
[BlackFideId "2000407"]
[WhiteElo "2658"]
[BlackElo "2506"]
[Result "1-0"]
[Round "11"]
[TimeControl "180+1"]
[Date "2022.12.20"]
[WhiteClock "0:01:43"]
[BlackClock "0:00:03"]

1. e4 {[%clk 0:03:00]}  c5 {[%clk 0:02:59]} 2. c3 {[%clk 0:03:01]}  Nf6 {[%clk 0:02:57]} 3. e5 {[%clk 0:03:00]}  Nd5 {[%clk 0:02:58]} 4. Bc4 {[%clk 0:03:00]}  e6 {[%clk 0:02:57]} 5. Nf3 {[%clk 0:03:00]}  Nc6 {[%clk 0:02:56]} 6. d4 {[%clk 0:03:01]}  cxd4 {[%clk 0:02:54]} 7. cxd4 {[%clk 0:03:02]}  d6 {[%clk 0:02:53]} 8. Qe2 {[%clk 0:03:01]}  dxe5 {[%clk 0:02:46]} 9. dxe5 {[%clk 0:03:01]}  Bb4+ {[%clk 0:02:46]} 10. Nbd2 {[%clk 0:03:02]}  O-O {[%clk 0:02:31]} 11. O-O {[%clk 0:03:00]}  Na5 {[%clk 0:02:30]} 12. Bd3 {[%clk 0:02:46]}  Nf4 {[%clk 0:02:26]} 13. Bxh7+ {[%clk 0:02:43]}  Kxh7 {[%clk 0:02:22]} 14. Qe4+ {[%clk 0:02:44]}  Ng6 {[%clk 0:02:11]} 15. Qxb4 {[%clk 0:02:42]}  b6 {[%clk 0:01:59]} 16. Qg4 {[%clk 0:02:39]}  Rh8 {[%clk 0:01:58]} 17. Ne4 {[%clk 0:02:27]}  Kg8 {[%clk 0:01:52]} 18. Bg5 {[%clk 0:02:20]}  Qe8 {[%clk 0:01:39]} 19. Nd6 {[%clk 0:02:15]}  Qf8 {[%clk 0:01:31]} 20. Rac1 {[%clk 0:02:05]}  Nxe5 {[%clk 0:01:08]} 21. Nxe5 {[%clk 0:02:03]}  Qxd6 {[%clk 0:01:07]} 22. Bf6 {[%clk 0:01:57]}  Qf8 {[%clk 0:00:58]} 23. Rc7 {[%clk 0:01:54]}  Rh7 {[%clk 0:00:44]} 24. Rxf7 {[%clk 0:01:53]}  Qxf7 {[%clk 0:00:43]} 25. Nxf7 {[%clk 0:01:53]}  Kxf7 {[%clk 0:00:43]} 26. Qe4 {[%clk 0:01:50]}  Rh6 {[%clk 0:00:19]} 27. Qxa8 {[%clk 0:01:48]}  Bb7 {[%clk 0:00:15]} 28. Qxa7 {[%clk 0:01:47]}  gxf6 {[%clk 0:00:04]} 29. Qxb6 {[%clk 0:01:44]}  Rg6 {[%clk 0:00:03]} 30. f3 {[%clk 0:01:43]} 1-0


[Site "https://www.chess.com"]

[Event "Titled Tuesday Blitz December 20 Late 2022"]
[White "Lacasa Diaz, Jose Antonio"]
[Black "Fiorito, Joaquin"]
[WhiteFideId "2203375"]
[BlackFideId "180173"]
[WhiteElo "2338"]
[BlackElo "2157"]
[Result "1-0"]
[Round "11"]
[TimeControl "180+1"]
[Date "2022.12.21"]
[WhiteClock "0:00:24"]
[BlackClock "0:01:39"]

1. e4 {[%clk 0:02:53]}  c6 {[%clk 0:02:59]} 2. d4 {[%clk 0:02:53]}  d5 {[%clk 0:02:59]} 3. e5 {[%clk 0:02:53]}  Bf5 {[%clk 0:02:59]} 4. Nf3 {[%clk 0:02:53]}  e6 {[%clk 0:02:59]} 5. Be2 {[%clk 0:02:50]}  c5 {[%clk 0:02:59]} 6. Be3 {[%clk 0:02:50]}  Qb6 {[%clk 0:02:59]} 7. c4 {[%clk 0:02:48]}  Qxb2 {[%clk 0:02:59]} 8. O-O {[%clk 0:02:48]}  Ne7 {[%clk 0:02:50]} 9. Nbd2 {[%clk 0:02:46]}  Nbc6 {[%clk 0:02:48]} 10. cxd5 {[%clk 0:02:35]}  Nxd5 {[%clk 0:02:47]} 11. Nc4 {[%clk 0:02:32]}  Qb4 {[%clk 0:02:37]} 12. Bd2 {[%clk 0:02:28]}  Nc3 {[%clk 0:02:33]} 13. Qe1 {[%clk 0:02:14]}  cxd4 {[%clk 0:02:32]} 14. Rc1 {[%clk 0:01:48]}  Be7 {[%clk 0:02:12]} 15. Bxc3 {[%clk 0:01:42]}  dxc3 {[%clk 0:02:13]} 16. Rxc3 {[%clk 0:01:41]}  O-O {[%clk 0:02:13]} 17. Rb3 {[%clk 0:01:40]}  Qa4 {[%clk 0:02:10]} 18. Rxb7 {[%clk 0:01:35]}  Bc5 {[%clk 0:02:09]} 19. Nd6 {[%clk 0:01:28]}  Bxd6 {[%clk 0:02:02]} 20. exd6 {[%clk 0:01:27]}  Rfd8 {[%clk 0:02:02]} 21. Bb5 {[%clk 0:01:21]}  Qe4 {[%clk 0:02:02]} 22. Bxc6 {[%clk 0:01:17]}  Qxc6 {[%clk 0:02:02]} 23. Rxf7 {[%clk 0:01:17]}  Qxd6 {[%clk 0:01:59]} 24. Ne5 {[%clk 0:01:08]}  Bd3 {[%clk 0:01:53]} 25. Qe3 {[%clk 0:01:01]}  Bxf1 {[%clk 0:01:51]} 26. Rxg7+ {[%clk 0:00:44]}  Kh8 {[%clk 0:01:45]} 27. Qh6 {[%clk 0:00:26]}  Bd3 {[%clk 0:01:39]} 28. Nf7# {[%clk 0:00:24]} 1-0


[Site "https://www.chess.com"]

[Event "Titled Tuesday Blitz December 20 Late 2022"]
[White "Matinian, Nikita"]
[Black "Eljanov, Pavel"]
[WhiteFideId "24129100"]
[BlackFideId "14102951"]
[WhiteElo "2422"]
[BlackElo "2598"]
[Result "1/2-1/2"]
[Round "11"]
[TimeControl "180+1"]
[Date "2022.12.20"]
[WhiteClock "0:00:11"]
[BlackClock "0:00:12"]

1. e4 {[%clk 0:03:00]}  c6 {[%clk 0:02:59]} 2. d4 {[%clk 0:03:00]}  d5 {[%clk 0:03:00]} 3. e5 {[%clk 0:03:01]}  Bf5 {[%clk 0:03:00]} 4. Nf3 {[%clk 0:03:02]}  e6 {[%clk 0:03:00]} 5. Be2 {[%clk 0:03:03]}  Nd7 {[%clk 0:03:00]} 6. O-O {[%clk 0:03:03]}  a5 {[%clk 0:03:01]} 7. Nbd2 {[%clk 0:02:58]}  a4 {[%clk 0:03:01]} 8. Re1 {[%clk 0:02:58]}  h6 {[%clk 0:02:59]} 9. Nf1 {[%clk 0:02:58]}  Ne7 {[%clk 0:02:59]} 10. Ng3 {[%clk 0:02:56]}  Bg6 {[%clk 0:02:58]} 11. c3 {[%clk 0:02:53]}  Nc8 {[%clk 0:02:56]} 12. Bd3 {[%clk 0:02:51]}  Bxd3 {[%clk 0:02:55]} 13. Qxd3 {[%clk 0:02:52]}  c5 {[%clk 0:02:50]} 14. dxc5 {[%clk 0:02:39]}  Bxc5 {[%clk 0:02:37]} 15. Nh5 {[%clk 0:02:36]}  g6 {[%clk 0:02:26]} 16. Nf6+ {[%clk 0:02:24]}  Nxf6 {[%clk 0:02:25]} 17. exf6 {[%clk 0:02:25]}  Nb6 {[%clk 0:01:47]} 18. Ne5 {[%clk 0:02:07]}  Bd6 {[%clk 0:01:34]} 19. Qb5+ {[%clk 0:01:41]}  Nd7 {[%clk 0:01:34]} 20. Nxg6 {[%clk 0:01:12]}  Rg8 {[%clk 0:01:34]} 21. Qxd5 {[%clk 0:01:05]}  Bxh2+ {[%clk 0:01:18]} 22. Kxh2 {[%clk 0:01:06]}  Rxg6 {[%clk 0:01:18]} 23. Qxb7 {[%clk 0:01:01]}  Rb8 {[%clk 0:01:05]} 24. Qf3 {[%clk 0:00:59]}  Qxf6 {[%clk 0:00:58]} 25. Qxf6 {[%clk 0:00:55]}  Nxf6 {[%clk 0:00:56]} 26. Re2 {[%clk 0:00:54]}  h5 {[%clk 0:00:43]} 27. Bf4 {[%clk 0:00:52]}  Rb5 {[%clk 0:00:38]} 28. c4 {[%clk 0:00:46]}  Rf5 {[%clk 0:00:35]} 29. Bb8 {[%clk 0:00:42]}  h4 {[%clk 0:00:26]} 30. Rf1 {[%clk 0:00:08]}  Rfg5 {[%clk 0:00:19]} 31. f3 {[%clk 0:00:08]}  Rh5 {[%clk 0:00:12]} 32. b4 {[%clk 0:00:06]}  h3 {[%clk 0:00:07]} 33. g4 {[%clk 0:00:05]}  Rh8 {[%clk 0:00:06]} 34. b5 {[%clk 0:00:05]}  Ke7 {[%clk 0:00:06]} 35. Be5 {[%clk 0:00:05]}  Rc8 {[%clk 0:00:05]} 36. Bxf6+ {[%clk 0:00:04]}  Rxf6 {[%clk 0:00:05]} 37. Rc2 {[%clk 0:00:04]}  Rf4 {[%clk 0:00:05]} 38. c5 {[%clk 0:00:04]}  Rb4 {[%clk 0:00:04]} 39. b6 {[%clk 0:00:02]}  Rxb6 {[%clk 0:00:04]} 40. cxb6 {[%clk 0:00:03]}  Rxc2+ {[%clk 0:00:04]} 41. Kxh3 {[%clk 0:00:03]}  Rb2 {[%clk 0:00:05]} 42. Rc1 {[%clk 0:00:03]}  Rxb6 {[%clk 0:00:05]} 43. Rc4 {[%clk 0:00:03]}  Ra6 {[%clk 0:00:05]} 44. Rb4 {[%clk 0:00:03]}  Kd6 {[%clk 0:00:05]} 45. a3 {[%clk 0:00:04]}  f5 {[%clk 0:00:04]} 46. g5 {[%clk 0:00:04]}  Ke5 {[%clk 0:00:04]} 47. f4+ {[%clk 0:00:03]}  Kd5 {[%clk 0:00:04]} 48. Kh4 {[%clk 0:00:04]}  e5 {[%clk 0:00:05]} 49. fxe5 {[%clk 0:00:04]}  Kxe5 {[%clk 0:00:05]} 50. Kh5 {[%clk 0:00:05]}  f4 {[%clk 0:00:05]} 51. g6 {[%clk 0:00:05]}  f3 {[%clk 0:00:06]} 52. g7 {[%clk 0:00:06]}  Ra8 {[%clk 0:00:06]} 53. Kg6 {[%clk 0:00:05]}  f2 {[%clk 0:00:06]} 54. Rb1 {[%clk 0:00:04]}  Ke4 {[%clk 0:00:06]} 55. Kf7 {[%clk 0:00:04]}  Ke3 {[%clk 0:00:06]} 56. g8=Q {[%clk 0:00:04]}  Rxg8 {[%clk 0:00:06]} 57. Kxg8 {[%clk 0:00:05]}  Ke2 {[%clk 0:00:07]} 58. Kf7 {[%clk 0:00:06]}  f1=Q+ {[%clk 0:00:07]} 59. Rxf1 {[%clk 0:00:06]}  Kxf1 {[%clk 0:00:08]} 60. Ke6 {[%clk 0:00:07]}  Ke2 {[%clk 0:00:08]} 61. Kd5 {[%clk 0:00:08]}  Kd3 {[%clk 0:00:08]} 62. Ke5 {[%clk 0:00:07]}  Kc3 {[%clk 0:00:09]} 63. Ke4 {[%clk 0:00:08]}  Kb3 {[%clk 0:00:09]} 64. Kd3 {[%clk 0:00:09]}  Kxa3 {[%clk 0:00:10]} 65. Kc2 {[%clk 0:00:10]}  Ka2 {[%clk 0:00:10]} 66. Kc1 {[%clk 0:00:10]}  a3 {[%clk 0:00:11]} 67. Kc2 {[%clk 0:00:11]}  Ka1 {[%clk 0:00:11]} 68. Kc1 {[%clk 0:00:11]}  a2 {[%clk 0:00:12]} 69. Kc2 {[%clk 0:00:11]} 1/2-1/2


[Site "https://www.chess.com"]

[Event "Titled Tuesday Blitz December 20 Late 2022"]
[White "Mekhitarian, Krikor Sevag"]
[Black "Shuvalova, Polina"]
[WhiteFideId "2107660"]
[BlackFideId "24171760"]
[WhiteElo "2604"]
[BlackElo "2361"]
[Result "1-0"]
[Round "11"]
[TimeControl "180+1"]
[Date "2022.12.20"]
[WhiteClock "0:00:23"]
[BlackClock "0:00:01"]

1. Nf3 {[%clk 0:03:00]}  Nf6 {[%clk 0:02:59]} 2. c4 {[%clk 0:03:00]}  e6 {[%clk 0:02:59]} 3. Nc3 {[%clk 0:02:59]}  d5 {[%clk 0:03:00]} 4. e3 {[%clk 0:03:00]}  c5 {[%clk 0:02:59]} 5. cxd5 {[%clk 0:02:59]}  exd5 {[%clk 0:02:59]} 6. d4 {[%clk 0:02:59]}  Nc6 {[%clk 0:02:59]} 7. Bb5 {[%clk 0:02:59]}  cxd4 {[%clk 0:02:59]} 8. Nxd4 {[%clk 0:02:58]}  Bd7 {[%clk 0:02:59]} 9. Nf3 {[%clk 0:02:56]}  Bg4 {[%clk 0:02:50]} 10. h3 {[%clk 0:02:52]}  Bh5 {[%clk 0:02:48]} 11. Qa4 {[%clk 0:02:52]}  Rc8 {[%clk 0:02:43]} 12. Qxa7 {[%clk 0:02:34]}  Qd7 {[%clk 0:02:05]} 13. Qb6 {[%clk 0:01:57]}  Bxf3 {[%clk 0:01:52]} 14. gxf3 {[%clk 0:01:58]}  Be7 {[%clk 0:01:43]} 15. Kf1 {[%clk 0:01:41]}  O-O {[%clk 0:01:41]} 16. Kg2 {[%clk 0:01:36]}  Bd8 {[%clk 0:01:34]} 17. Qc5 {[%clk 0:01:31]}  Be7 {[%clk 0:01:30]} 18. Qb6 {[%clk 0:01:28]}  Bd8 {[%clk 0:01:16]} 19. Bxc6 {[%clk 0:01:27]}  Rxc6 {[%clk 0:01:09]} 20. Qb3 {[%clk 0:01:27]}  Bc7 {[%clk 0:00:46]} 21. Ne2 {[%clk 0:01:20]}  Nh5 {[%clk 0:00:44]} 22. Bd2 {[%clk 0:01:17]}  Rg6+ {[%clk 0:00:44]} 23. Kf1 {[%clk 0:01:17]}  h6 {[%clk 0:00:18]} 24. Rc1 {[%clk 0:01:16]}  Be5 {[%clk 0:00:18]} 25. f4 {[%clk 0:01:15]}  Bf6 {[%clk 0:00:15]} 26. Bc3 {[%clk 0:01:04]}  Bh4 {[%clk 0:00:13]} 27. Rd1 {[%clk 0:00:57]}  Nf6 {[%clk 0:00:13]} 28. Bxf6 {[%clk 0:00:54]}  Rxf6 {[%clk 0:00:13]} 29. Qxd5 {[%clk 0:00:54]}  Qa4 {[%clk 0:00:09]} 30. Nc3 {[%clk 0:00:52]}  Qa6+ {[%clk 0:00:08]} 31. Qd3 {[%clk 0:00:51]}  Qe6 {[%clk 0:00:08]} 32. Nd5 {[%clk 0:00:46]}  Rf5 {[%clk 0:00:05]} 33. e4 {[%clk 0:00:46]}  Rh5 {[%clk 0:00:04]} 34. Qf3 {[%clk 0:00:42]}  g6 {[%clk 0:00:04]} 35. f5 {[%clk 0:00:43]}  Qe5 {[%clk 0:00:04]} 36. Rg1 {[%clk 0:00:41]}  Qxb2 {[%clk 0:00:04]} 37. fxg6 {[%clk 0:00:31]}  fxg6 {[%clk 0:00:01]} 38. Rxg6+ {[%clk 0:00:32]}  Kh7 {[%clk 0:00:02]} 39. Qxf8 {[%clk 0:00:29]}  Kxg6 {[%clk 0:00:02]} 40. Qg8+ {[%clk 0:00:23]}  Qg7 {[%clk 0:00:01]} 41. Nf4+ {[%clk 0:00:23]} 1-0


[Site "https://www.chess.com"]

[Event "Titled Tuesday Blitz December 20 Late 2022"]
[White "Moreno Perez, Tobias Sebastian"]
[Black "Han, Yichen"]
[WhiteFideId "186716"]
[BlackFideId "1054430"]
[WhiteElo "2259"]
[BlackElo "2323"]
[Result "1-0"]
[Round "11"]
[TimeControl "180+1"]
[Date "2022.12.21"]
[WhiteClock "0:00:11"]
[BlackClock "0:00:12"]

1. Nf3 {[%clk 0:03:00]}  d5 {[%clk 0:02:59]} 2. b3 {[%clk 0:02:59]}  Bg4 {[%clk 0:02:58]} 3. Bb2 {[%clk 0:02:58]}  c5 {[%clk 0:02:52]} 4. g3 {[%clk 0:02:57]}  Nc6 {[%clk 0:02:51]} 5. Bg2 {[%clk 0:02:55]}  Nf6 {[%clk 0:02:50]} 6. O-O {[%clk 0:02:54]}  Bxf3 {[%clk 0:02:50]} 7. exf3 {[%clk 0:02:53]}  e6 {[%clk 0:02:49]} 8. f4 {[%clk 0:02:52]}  Be7 {[%clk 0:02:48]} 9. d3 {[%clk 0:02:53]}  O-O {[%clk 0:02:48]} 10. Nd2 {[%clk 0:02:53]}  Nd7 {[%clk 0:02:45]} 11. c4 {[%clk 0:02:53]}  Bf6 {[%clk 0:02:40]} 12. Bxf6 {[%clk 0:02:23]}  Nxf6 {[%clk 0:02:41]} 13. cxd5 {[%clk 0:02:17]}  exd5 {[%clk 0:02:37]} 14. Rc1 {[%clk 0:02:13]}  b6 {[%clk 0:02:36]} 15. Nf3 {[%clk 0:02:07]}  Qd6 {[%clk 0:02:23]} 16. d4 {[%clk 0:02:05]}  Rac8 {[%clk 0:02:20]} 17. Re1 {[%clk 0:01:56]}  Rfd8 {[%clk 0:02:12]} 18. dxc5 {[%clk 0:01:49]}  bxc5 {[%clk 0:02:12]} 19. Bh3 {[%clk 0:01:50]}  Rc7 {[%clk 0:02:09]} 20. Ne5 {[%clk 0:01:48]}  d4 {[%clk 0:01:45]} 21. Nd3 {[%clk 0:01:38]}  Ne7 {[%clk 0:01:38]} 22. Ne5 {[%clk 0:01:21]}  Ned5 {[%clk 0:01:33]} 23. Nc4 {[%clk 0:01:21]}  Qf8 {[%clk 0:01:28]} 24. Re5 {[%clk 0:01:21]}  Nc3 {[%clk 0:01:26]} 25. Qc2 {[%clk 0:01:10]}  Nfd5 {[%clk 0:01:11]} 26. a3 {[%clk 0:01:07]}  Re7 {[%clk 0:01:03]} 27. Bf1 {[%clk 0:00:58]}  f6 {[%clk 0:00:50]} 28. Rxe7 {[%clk 0:00:56]}  Qxe7 {[%clk 0:00:51]} 29. Bd3 {[%clk 0:00:57]}  g6 {[%clk 0:00:51]} 30. Qd2 {[%clk 0:00:38]}  Re8 {[%clk 0:00:47]} 31. b4 {[%clk 0:00:33]}  cxb4 {[%clk 0:00:42]} 32. axb4 {[%clk 0:00:33]}  Nxb4 {[%clk 0:00:43]} 33. Bf1 {[%clk 0:00:32]}  Nc6 {[%clk 0:00:34]} 34. Ra1 {[%clk 0:00:26]}  Qc5 {[%clk 0:00:15]} 35. f5 {[%clk 0:00:21]}  g5 {[%clk 0:00:14]} 36. Qc2 {[%clk 0:00:14]}  Kg7 {[%clk 0:00:13]} 37. Ra6 {[%clk 0:00:13]}  Nb4 {[%clk 0:00:11]} 38. Qa4 {[%clk 0:00:13]}  Nxa6 {[%clk 0:00:05]} 39. Qxe8 {[%clk 0:00:12]}  Qf8 {[%clk 0:00:03]} 40. Qd7+ {[%clk 0:00:10]}  Kh8 {[%clk 0:00:03]} 41. Qxd4 {[%clk 0:00:10]}  Nb5 {[%clk 0:00:03]} 42. Qd5 {[%clk 0:00:08]}  Nac7 {[%clk 0:00:03]} 43. Qc6 {[%clk 0:00:07]}  Qe8 {[%clk 0:00:02]} 44. Qc5 {[%clk 0:00:05]}  Kg7 {[%clk 0:00:02]} 45. Ne3 {[%clk 0:00:05]}  Qf7 {[%clk 0:00:02]} 46. Bxb5 {[%clk 0:00:04]}  h5 {[%clk 0:00:02]} 47. Bf1 {[%clk 0:00:04]}  h4 {[%clk 0:00:03]} 48. Nc4 {[%clk 0:00:04]}  Nd5 {[%clk 0:00:02]} 49. Nd6 {[%clk 0:00:04]}  Qg8 {[%clk 0:00:03]} 50. Qxa7+ {[%clk 0:00:03]}  Kh6 {[%clk 0:00:03]} 51. Qf7 {[%clk 0:00:03]}  Qxf7 {[%clk 0:00:01]} 52. Nxf7+ {[%clk 0:00:04]}  Kh5 {[%clk 0:00:02]} 53. Nd6 {[%clk 0:00:04]}  g4 {[%clk 0:00:02]} 54. Ne4 {[%clk 0:00:04]}  Nb4 {[%clk 0:00:01]} 55. Nxf6+ {[%clk 0:00:03]}  Kg5 {[%clk 0:00:02]} 56. Ne4+ {[%clk 0:00:02]}  Kxf5 {[%clk 0:00:03]} 57. Nd2 {[%clk 0:00:02]}  hxg3 {[%clk 0:00:03]} 58. hxg3 {[%clk 0:00:02]}  Kg5 {[%clk 0:00:03]} 59. Ne4+ {[%clk 0:00:02]}  Kf5 {[%clk 0:00:03]} 60. Nc3 {[%clk 0:00:03]}  Kg5 {[%clk 0:00:04]} 61. Be2 {[%clk 0:00:03]}  Nc6 {[%clk 0:00:04]} 62. Nd5 {[%clk 0:00:04]}  Ne5 {[%clk 0:00:04]} 63. Ne3 {[%clk 0:00:03]}  Kh5 {[%clk 0:00:01]} 64. Nxg4 {[%clk 0:00:04]}  Ng6 {[%clk 0:00:02]} 65. Ne5+ {[%clk 0:00:03]}  Kg5 {[%clk 0:00:02]} 66. Nxg6 {[%clk 0:00:04]}  Kxg6 {[%clk 0:00:03]} 67. f4 {[%clk 0:00:04]}  Kf5 {[%clk 0:00:04]} 68. Kf2 {[%clk 0:00:05]}  Ke4 {[%clk 0:00:04]} 69. Bf3+ {[%clk 0:00:06]}  Kd4 {[%clk 0:00:05]} 70. g4 {[%clk 0:00:07]}  Kc4 {[%clk 0:00:05]} 71. Kg3 {[%clk 0:00:08]}  Kd4 {[%clk 0:00:05]} 72. g5 {[%clk 0:00:09]}  Kc5 {[%clk 0:00:05]} 73. Bg4 {[%clk 0:00:10]}  Kd6 {[%clk 0:00:06]} 74. Kh4 {[%clk 0:00:10]}  Ke7 {[%clk 0:00:07]} 75. f5 {[%clk 0:00:11]}  Kf7 {[%clk 0:00:08]} 76. f6 {[%clk 0:00:12]}  Kg6 {[%clk 0:00:08]} 77. Bd1 {[%clk 0:00:11]}  Kf5 {[%clk 0:00:08]} 78. Bc2+ {[%clk 0:00:12]}  Ke6 {[%clk 0:00:08]} 79. Kh5 {[%clk 0:00:12]}  Kf7 {[%clk 0:00:09]} 80. Kh6 {[%clk 0:00:12]}  Kg8 {[%clk 0:00:10]} 81. Bb3+ {[%clk 0:00:12]}  Kh8 {[%clk 0:00:10]} 82. Bc2 {[%clk 0:00:11]}  Kg8 {[%clk 0:00:11]} 83. g6 {[%clk 0:00:11]}  Kh8 {[%clk 0:00:11]} 84. g7+ {[%clk 0:00:10]}  Kg8 {[%clk 0:00:12]} 85. Bb3# {[%clk 0:00:11]} 1-0


[Site "https://www.chess.com"]

[Event "Titled Tuesday Blitz December 20 Late 2022"]
[White "Musovic, Armin"]
[Black "Ibadov, Dashgyn"]
[WhiteFideId "939935"]
[BlackFideId "24107514"]
[WhiteElo "2288"]
[BlackElo "2208"]
[Result "0-1"]
[Round "11"]
[TimeControl "180+1"]
[Date "2022.12.21"]
[WhiteClock "0:00:08"]
[BlackClock "0:00:10"]

1. a3 {[%clk 0:03:00]}  e5 {[%clk 0:02:55]} 2. Nc3 {[%clk 0:03:01]}  Nf6 {[%clk 0:02:55]} 3. d4 {[%clk 0:03:02]}  exd4 {[%clk 0:02:55]} 4. Qxd4 {[%clk 0:03:02]}  Nc6 {[%clk 0:02:55]} 5. Qa4 {[%clk 0:03:03]}  d5 {[%clk 0:02:54]} 6. Bg5 {[%clk 0:03:04]}  Be6 {[%clk 0:02:52]} 7. O-O-O {[%clk 0:03:04]}  h6 {[%clk 0:02:49]} 8. Bh4 {[%clk 0:03:03]}  g5 {[%clk 0:02:49]} 9. Bg3 {[%clk 0:03:04]}  Bg7 {[%clk 0:02:49]} 10. e4 {[%clk 0:03:03]}  d4 {[%clk 0:02:30]} 11. Nf3 {[%clk 0:03:02]}  Nh5 {[%clk 0:02:23]} 12. Be5 {[%clk 0:02:48]}  Bxe5 {[%clk 0:02:12]} 13. Nxe5 {[%clk 0:02:47]}  O-O {[%clk 0:02:13]} 14. Nxc6 {[%clk 0:02:46]}  bxc6 {[%clk 0:02:13]} 15. Qxd4 {[%clk 0:02:46]}  Qe7 {[%clk 0:02:09]} 16. Qe5 {[%clk 0:02:36]}  Nf4 {[%clk 0:02:02]} 17. g3 {[%clk 0:02:29]}  Ng6 {[%clk 0:02:02]} 18. Qa5 {[%clk 0:02:29]}  Qf6 {[%clk 0:01:58]} 19. Qc5 {[%clk 0:02:18]}  Ne5 {[%clk 0:01:48]} 20. Be2 {[%clk 0:02:10]}  Rab8 {[%clk 0:01:46]} 21. h4 {[%clk 0:02:05]}  g4 {[%clk 0:01:44]} 22. h5 {[%clk 0:01:46]}  Rb6 {[%clk 0:01:37]} 23. Rh4 {[%clk 0:01:44]}  Rfb8 {[%clk 0:01:36]} 24. Na4 {[%clk 0:01:44]}  R6b7 {[%clk 0:01:35]} 25. Qe3 {[%clk 0:01:31]}  Rxb2 {[%clk 0:01:08]} 26. Nxb2 {[%clk 0:01:28]}  Rxb2 {[%clk 0:01:08]} 27. Qf4 {[%clk 0:01:16]}  Qg7 {[%clk 0:01:03]} 28. Rd8+ {[%clk 0:01:14]}  Kh7 {[%clk 0:01:03]} 29. Ra8 {[%clk 0:00:42]}  Ra2 {[%clk 0:00:49]} 30. Kd1 {[%clk 0:00:18]}  Ra1+ {[%clk 0:00:32]} 31. Kd2 {[%clk 0:00:16]}  Nf3+ {[%clk 0:00:32]} 32. Qxf3 {[%clk 0:00:14]}  gxf3 {[%clk 0:00:31]} 33. Bd3 {[%clk 0:00:14]}  Qd4 {[%clk 0:00:30]} 34. e5+ {[%clk 0:00:15]}  Kg7 {[%clk 0:00:30]} 35. Rxd4 {[%clk 0:00:15]}  Rxa3 {[%clk 0:00:26]} 36. Rf4 {[%clk 0:00:14]}  c5 {[%clk 0:00:21]} 37. Rxf3 {[%clk 0:00:13]}  c4 {[%clk 0:00:21]} 38. Be4 {[%clk 0:00:14]}  Ra5 {[%clk 0:00:22]} 39. Bf5 {[%clk 0:00:11]}  Bd5 {[%clk 0:00:22]} 40. Rc3 {[%clk 0:00:05]}  Bxa8 {[%clk 0:00:21]} 41. f4 {[%clk 0:00:06]}  Bd5 {[%clk 0:00:20]} 42. Ke2 {[%clk 0:00:05]}  Ra1 {[%clk 0:00:19]} 43. Ke3 {[%clk 0:00:06]}  a5 {[%clk 0:00:19]} 44. Kd4 {[%clk 0:00:06]}  c6 {[%clk 0:00:20]} 45. Kc5 {[%clk 0:00:04]}  Kf8 {[%clk 0:00:18]} 46. Kd6 {[%clk 0:00:01]}  a4 {[%clk 0:00:18]} 47. Bd7 {[%clk 0:00:02]}  a3 {[%clk 0:00:11]} 48. Bxc6 {[%clk 0:00:03]}  Be6 {[%clk 0:00:10]} 49. Kc5 {[%clk 0:00:03]}  a2 {[%clk 0:00:09]} 50. Ra3 {[%clk 0:00:03]}  c3 {[%clk 0:00:09]} 51. Ra8+ {[%clk 0:00:04]}  Kg7 {[%clk 0:00:09]} 52. Bf3 {[%clk 0:00:04]}  Rc1 {[%clk 0:00:08]} 53. Rxa2 {[%clk 0:00:04]}  Bxa2 {[%clk 0:00:09]} 54. Be4 {[%clk 0:00:04]}  Bb1 {[%clk 0:00:09]} 55. Kd4 {[%clk 0:00:05]}  Bxc2 {[%clk 0:00:09]} 56. Bxc2 {[%clk 0:00:05]}  Rxc2 {[%clk 0:00:10]} 57. g4 {[%clk 0:00:06]}  Rf2 {[%clk 0:00:09]} 58. Kxc3 {[%clk 0:00:06]}  Rxf4 {[%clk 0:00:09]} 59. e6 {[%clk 0:00:06]}  fxe6 {[%clk 0:00:09]} 60. g5 {[%clk 0:00:07]}  hxg5 {[%clk 0:00:09]} 61. Kd2 {[%clk 0:00:07]}  Kh6 {[%clk 0:00:09]} 62. Ke3 {[%clk 0:00:08]}  Kxh5 {[%clk 0:00:10]} 0-1


[Site "https://www.chess.com"]